[Event "Titled Tuesday Blitz July 25 Late 2023"]
[White "Vega Gutierrez, Sabrina"]
[Black "Czarnota, Pawel"]
[WhiteFideId "2219026"]
[BlackFideId "1121219"]
[WhiteElo "2404"]
[BlackElo "2740"]
[Result "1-0"]
[Round "4"]
[TimeControl "180+2"]
[Date "2023.07.25"]
[WhiteClock "0:00:17"]
[BlackClock "0:00:23"]
[Board "109"]

1. e4 {[%clk 0:03:00]}  c5 {[%clk 0:02:58]} 2. Nf3 {[%clk 0:03:01]}  d6 {[%clk 0:02:58]} 3. d4 {[%clk 0:03:01]}  cxd4 {[%clk 0:02:59]} 4. Qxd4 {[%clk 0:02:57]}  Nc6 {[%clk 0:02:57]} 5. Bb5 {[%clk 0:02:58]}  Bd7 {[%clk 0:02:57]} 6. Bxc6 {[%clk 0:02:58]}  Bxc6 {[%clk 0:02:58]} 7. Nc3 {[%clk 0:02:58]}  e6 {[%clk 0:02:55]} 8. Bg5 {[%clk 0:02:57]}  Nf6 {[%clk 0:02:53]} 9. O-O-O {[%clk 0:02:57]}  Be7 {[%clk 0:02:54]} 10. Qd3 {[%clk 0:02:56]}  O-O {[%clk 0:02:53]} 11. Nd4 {[%clk 0:02:56]}  Qa5 {[%clk 0:02:46]} 12. f4 {[%clk 0:02:56]}  Rac8 {[%clk 0:02:41]} 13. Kb1 {[%clk 0:02:51]}  Rfe8 {[%clk 0:02:33]} 14. f5 {[%clk 0:02:44]}  Bd7 {[%clk 0:02:11]} 15. Nb3 {[%clk 0:02:27]}  Qe5 {[%clk 0:02:05]} 16. Bxf6 {[%clk 0:01:27]}  Qxf6 {[%clk 0:02:00]} 17. g3 {[%clk 0:01:26]}  Qe5 {[%clk 0:01:55]} 18. h4 {[%clk 0:01:18]}  a6 {[%clk 0:01:55]} 19. g4 {[%clk 0:01:18]}  b5 {[%clk 0:01:49]} 20. a3 {[%clk 0:00:55]}  Bf8 {[%clk 0:01:44]} 21. Rhf1 {[%clk 0:00:50]}  Rc4 {[%clk 0:01:41]} 22. Nd2 {[%clk 0:00:45]}  Rc7 {[%clk 0:01:28]} 23. g5 {[%clk 0:00:37]}  Rec8 {[%clk 0:01:25]} 24. Nf3 {[%clk 0:00:36]}  Qc5 {[%clk 0:01:24]} 25. g6 {[%clk 0:00:31]}  fxg6 {[%clk 0:01:05]} 26. fxg6 {[%clk 0:00:25]}  h6 {[%clk 0:01:01]} 27. Nd4 {[%clk 0:00:23]}  b4 {[%clk 0:00:59]} 28. axb4 {[%clk 0:00:22]}  Qxb4 {[%clk 0:01:00]} 29. Nb3 {[%clk 0:00:20]}  Be8 {[%clk 0:00:44]} 30. Qh3 {[%clk 0:00:18]}  Qc4 {[%clk 0:00:42]} 31. Rd4 {[%clk 0:00:17]}  Qc6 {[%clk 0:00:25]} 32. Qxe6+ {[%clk 0:00:17]}  Kh8 {[%clk 0:00:23]} 33. Rxf8# {[%clk 0:00:17]} 1-0


[Site "https://www.chess.com"]

[Event "Titled Tuesday Blitz July 25 Late 2023"]
[White "Fernandez Diaz, Cristian"]
[Black "Shuvalova, Polina"]
[WhiteFideId "22256687"]
[BlackFideId "24171760"]
[WhiteElo "2382"]
[BlackElo "2632"]
[Result "0-1"]
[Round "4"]
[TimeControl "180+2"]
[Date "2023.07.25"]
[WhiteClock "0:00:35"]
[BlackClock "0:01:47"]
[Board "115"]

1. d4 {[%clk 0:03:00]}  Nf6 {[%clk 0:02:59]} 2. c4 {[%clk 0:03:00]}  e6 {[%clk 0:02:59]} 3. Nc3 {[%clk 0:03:00]}  d5 {[%clk 0:03:00]} 4. cxd5 {[%clk 0:03:00]}  Nxd5 {[%clk 0:03:01]} 5. e4 {[%clk 0:02:59]}  Nxc3 {[%clk 0:03:02]} 6. bxc3 {[%clk 0:03:00]}  c5 {[%clk 0:03:02]} 7. Rb1 {[%clk 0:02:58]}  Be7 {[%clk 0:03:02]} 8. Nf3 {[%clk 0:02:57]}  O-O {[%clk 0:03:01]} 9. Bd3 {[%clk 0:02:54]}  cxd4 {[%clk 0:02:52]} 10. cxd4 {[%clk 0:02:53]}  Nc6 {[%clk 0:02:52]} 11. Bc4 {[%clk 0:02:31]}  a6 {[%clk 0:02:51]} 12. O-O {[%clk 0:02:30]}  b5 {[%clk 0:02:51]} 13. Be2 {[%clk 0:02:25]}  Bb7 {[%clk 0:02:51]} 14. Be3 {[%clk 0:02:22]}  Rc8 {[%clk 0:02:50]} 15. Qd2 {[%clk 0:02:10]}  Na5 {[%clk 0:02:48]} 16. Rfc1 {[%clk 0:02:08]}  Bxe4 {[%clk 0:02:43]} 17. Rxc8 {[%clk 0:01:58]}  Qxc8 {[%clk 0:02:42]} 18. Rc1 {[%clk 0:01:56]}  Qd8 {[%clk 0:02:43]} 19. Ne5 {[%clk 0:01:55]}  Bf6 {[%clk 0:02:35]} 20. Qb4 {[%clk 0:01:52]}  Bd5 {[%clk 0:02:31]} 21. a4 {[%clk 0:01:51]}  Be7 {[%clk 0:02:17]} 22. Qb1 {[%clk 0:01:42]}  bxa4 {[%clk 0:02:16]} 23. Bxa6 {[%clk 0:01:42]}  Nb3 {[%clk 0:02:17]} 24. Rc8 {[%clk 0:01:29]}  Qd6 {[%clk 0:02:15]} 25. Rxf8+ {[%clk 0:01:14]}  Bxf8 {[%clk 0:02:16]} 26. Bd3 {[%clk 0:01:14]}  g6 {[%clk 0:02:11]} 27. Qc2 {[%clk 0:01:12]}  a3 {[%clk 0:02:05]} 28. Nc4 {[%clk 0:00:48]}  Qb4 {[%clk 0:01:55]} 29. h4 {[%clk 0:00:43]}  Bxc4 {[%clk 0:01:48]} 30. Bxc4 {[%clk 0:00:35]}  a2 {[%clk 0:01:47]} 0-1


[Site "https://www.chess.com"]

[Event "Titled Tuesday Blitz July 25 Late 2023"]
[White "ArtemDyachuk"]
[Black "Haraguchi, Diego Sashaki"]
[BlackFideId "22729925"]
[WhiteElo "2598"]
[BlackElo "2373"]
[Result "1-0"]
[Round "4"]
[TimeControl "180+2"]
[Date "2023.07.25"]
[WhiteClock "0:00:13"]
[BlackClock "0:00:12"]
[Board "117"]

1. e4 {[%clk 0:03:00]}  c5 {[%clk 0:02:54]} 2. Nf3 {[%clk 0:03:00]}  d6 {[%clk 0:02:54]} 3. d4 {[%clk 0:03:00]}  cxd4 {[%clk 0:02:55]} 4. Nxd4 {[%clk 0:03:00]}  Nf6 {[%clk 0:02:56]} 5. Nc3 {[%clk 0:03:01]}  a6 {[%clk 0:02:56]} 6. h3 {[%clk 0:03:00]}  g6 {[%clk 0:02:56]} 7. g4 {[%clk 0:02:59]}  Bg7 {[%clk 0:02:56]} 8. Bg2 {[%clk 0:02:59]}  O-O {[%clk 0:02:55]} 9. O-O {[%clk 0:02:59]}  Nbd7 {[%clk 0:02:55]} 10. Be3 {[%clk 0:02:58]}  Nc5 {[%clk 0:02:54]} 11. f4 {[%clk 0:02:56]}  e5 {[%clk 0:02:52]} 12. Nb3 {[%clk 0:02:55]}  Nxb3 {[%clk 0:02:50]} 13. axb3 {[%clk 0:02:56]}  Qc7 {[%clk 0:02:42]} 14. g5 {[%clk 0:02:44]}  Nh5 {[%clk 0:02:40]} 15. f5 {[%clk 0:02:41]}  f6 {[%clk 0:02:28]} 16. Nd5 {[%clk 0:02:40]}  Qd8 {[%clk 0:02:24]} 17. gxf6 {[%clk 0:02:35]}  Bxf6 {[%clk 0:02:17]} 18. Bh6 {[%clk 0:02:27]}  Bg7 {[%clk 0:02:14]} 19. Bxg7 {[%clk 0:02:25]}  Kxg7 {[%clk 0:02:13]} 20. Qe2 {[%clk 0:02:16]}  Qg5 {[%clk 0:02:04]} 21. Qe3 {[%clk 0:01:56]}  Qxe3+ {[%clk 0:01:56]} 22. Nxe3 {[%clk 0:01:57]}  Nf4 {[%clk 0:01:56]} 23. Rad1 {[%clk 0:01:47]}  gxf5 {[%clk 0:01:49]} 24. exf5 {[%clk 0:01:46]}  Bxf5 {[%clk 0:01:48]} 25. Nxf5+ {[%clk 0:01:36]}  Rxf5 {[%clk 0:01:47]} 26. Rxd6 {[%clk 0:01:37]}  Rg5 {[%clk 0:01:46]} 27. Rd2 {[%clk 0:01:34]}  Nxh3+ {[%clk 0:01:39]} 28. Kh2 {[%clk 0:01:34]}  Nf4 {[%clk 0:01:40]} 29. Bxb7 {[%clk 0:01:33]}  Rf8 {[%clk 0:01:35]} 30. Rg1 {[%clk 0:01:09]}  Rxg1 {[%clk 0:01:17]} 31. Kxg1 {[%clk 0:01:09]}  Rf6 {[%clk 0:01:14]} 32. Rd7+ {[%clk 0:01:05]}  Kh6 {[%clk 0:01:04]} 33. Be4 {[%clk 0:01:05]}  Nh3+ {[%clk 0:01:02]} 34. Kg2 {[%clk 0:01:02]}  Ng5 {[%clk 0:01:02]} 35. Bd5 {[%clk 0:00:56]}  Kh5 {[%clk 0:00:50]} 36. c4 {[%clk 0:00:51]}  e4 {[%clk 0:00:31]} 37. Re7 {[%clk 0:00:43]}  Rb6 {[%clk 0:00:28]} 38. c5 {[%clk 0:00:36]}  Rb5 {[%clk 0:00:28]} 39. Re5 {[%clk 0:00:23]}  Kg4 {[%clk 0:00:22]} 40. Bc4 {[%clk 0:00:21]}  Rb8 {[%clk 0:00:21]} 41. c6 {[%clk 0:00:18]}  Kf4 {[%clk 0:00:21]} 42. c7 {[%clk 0:00:16]}  Rc8 {[%clk 0:00:20]} 43. Re7 {[%clk 0:00:15]}  e3 {[%clk 0:00:12]} 44. Bxa6 {[%clk 0:00:13]} 1-0


[Site "https://www.chess.com"]

[Event "Titled Tuesday Blitz July 25 Late 2023"]
[White "Rian, Kapriaga"]
[Black "Andrej2004"]
[WhiteFideId "7103263"]
[WhiteElo "2367"]
[BlackElo "2583"]
[Result "0-1"]
[Round "4"]
[TimeControl "180+2"]
[Date "2023.07.25"]
[WhiteClock "0:00:00"]
[BlackClock "0:01:40"]
[Board "118"]

1. d4 {[%clk 0:03:00]}  Nf6 {[%clk 0:02:58]} 2. Nf3 {[%clk 0:03:00]}  e6 {[%clk 0:02:58]} 3. e3 {[%clk 0:02:56]}  b6 {[%clk 0:02:57]} 4. Bd3 {[%clk 0:02:56]}  Bb7 {[%clk 0:02:58]} 5. O-O {[%clk 0:02:55]}  g6 {[%clk 0:02:54]} 6. Nbd2 {[%clk 0:02:55]}  Bg7 {[%clk 0:02:54]} 7. b3 {[%clk 0:02:55]}  O-O {[%clk 0:02:53]} 8. Bb2 {[%clk 0:02:54]}  d5 {[%clk 0:02:53]} 9. Ne5 {[%clk 0:02:52]}  Ne4 {[%clk 0:02:52]} 10. f3 {[%clk 0:02:43]}  Nd6 {[%clk 0:02:51]} 11. f4 {[%clk 0:02:39]}  f6 {[%clk 0:02:50]} 12. Nef3 {[%clk 0:02:37]}  Nd7 {[%clk 0:02:50]} 13. Qe2 {[%clk 0:02:36]}  Ne4 {[%clk 0:02:49]} 14. c4 {[%clk 0:01:59]}  f5 {[%clk 0:02:35]} 15. Rac1 {[%clk 0:01:56]}  Rc8 {[%clk 0:02:34]} 16. cxd5 {[%clk 0:01:54]}  exd5 {[%clk 0:02:35]} 17. Ne5 {[%clk 0:01:53]}  c5 {[%clk 0:02:26]} 18. Nxe4 {[%clk 0:01:49]}  fxe4 {[%clk 0:02:24]} 19. Ba6 {[%clk 0:01:46]}  Bxa6 {[%clk 0:02:20]} 20. Qxa6 {[%clk 0:01:46]}  Nxe5 {[%clk 0:02:20]} 21. fxe5 {[%clk 0:01:35]}  Qe7 {[%clk 0:02:10]} 22. dxc5 {[%clk 0:01:23]}  bxc5 {[%clk 0:02:07]} 23. Rf6 {[%clk 0:01:17]}  Bxf6 {[%clk 0:02:00]} 24. exf6 {[%clk 0:01:16]}  Qd7 {[%clk 0:01:58]} 25. Rd1 {[%clk 0:01:10]}  Rf7 {[%clk 0:01:54]} 26. h3 {[%clk 0:01:00]}  h6 {[%clk 0:01:55]} 27. Rf1 {[%clk 0:00:50]}  d4 {[%clk 0:01:49]} 28. exd4 {[%clk 0:00:41]}  cxd4 {[%clk 0:01:50]} 29. Rf4 {[%clk 0:00:30]}  d3 {[%clk 0:01:46]} 30. Rxe4 {[%clk 0:00:25]}  d2 {[%clk 0:01:45]} 31. Rd4 {[%clk 0:00:19]}  d1=Q+ {[%clk 0:01:45]} 32. Rxd1 {[%clk 0:00:15]}  Qxd1+ {[%clk 0:01:43]} 33. Kh2 {[%clk 0:00:16]}  Qd7 {[%clk 0:01:44]} 34. Qe2 {[%clk 0:00:11]}  Re8 {[%clk 0:01:42]} 35. Qf3 {[%clk 0:00:00]}  Qd6+ {[%clk 0:01:40]} 0-1


[Site "https://www.chess.com"]

[Event "Titled Tuesday Blitz July 25 Late 2023"]
[White "Tarasova, Viktoriya"]
[Black "Veiga, Jose Francisco R P Neves"]
[WhiteFideId "4175840"]
[BlackFideId "1930087"]
[WhiteElo "2365"]
[BlackElo "2565"]
[Result "1-0"]
[Round "4"]
[TimeControl "180+2"]
[Date "2023.07.25"]
[WhiteClock "0:00:21"]
[BlackClock "0:00:41"]
[Board "120"]

1. d4 {[%clk 0:03:00]}  Nf6 {[%clk 0:02:58]} 2. c4 {[%clk 0:03:00]}  e6 {[%clk 0:02:59]} 3. Nc3 {[%clk 0:03:00]}  Bb4 {[%clk 0:02:59]} 4. Nf3 {[%clk 0:03:00]}  O-O {[%clk 0:02:59]} 5. Bg5 {[%clk 0:02:58]}  h6 {[%clk 0:02:58]} 6. Bh4 {[%clk 0:02:58]}  d5 {[%clk 0:02:58]} 7. cxd5 {[%clk 0:02:57]}  exd5 {[%clk 0:02:59]} 8. e3 {[%clk 0:02:57]}  c6 {[%clk 0:02:55]} 9. Qc2 {[%clk 0:02:57]}  Be6 {[%clk 0:02:51]} 10. Bd3 {[%clk 0:02:56]}  Nbd7 {[%clk 0:02:51]} 11. O-O {[%clk 0:02:56]}  a5 {[%clk 0:02:49]} 12. Ne5 {[%clk 0:02:54]}  g5 {[%clk 0:02:20]} 13. Bg3 {[%clk 0:02:53]}  Nh5 {[%clk 0:02:19]} 14. f4 {[%clk 0:02:52]}  Nxe5 {[%clk 0:02:10]} 15. dxe5 {[%clk 0:02:47]}  Qb6 {[%clk 0:02:02]} 16. Bf2 {[%clk 0:02:41]}  a4 {[%clk 0:01:23]} 17. f5 {[%clk 0:02:24]}  Bc8 {[%clk 0:01:20]} 18. Qe2 {[%clk 0:02:09]}  Ng7 {[%clk 0:01:18]} 19. f6 {[%clk 0:02:09]}  Nf5 {[%clk 0:01:15]} 20. Qh5 {[%clk 0:01:51]}  Re8 {[%clk 0:01:05]} 21. Bxf5 {[%clk 0:01:27]}  Bxf5 {[%clk 0:01:05]} 22. e4 {[%clk 0:01:28]}  Bg6 {[%clk 0:01:05]} 23. Qxg6+ {[%clk 0:01:14]}  fxg6 {[%clk 0:01:06]} 24. Bxb6 {[%clk 0:01:14]}  Rxe5 {[%clk 0:01:05]} 25. Bd4 {[%clk 0:01:06]}  Re6 {[%clk 0:01:03]} 26. exd5 {[%clk 0:01:04]}  Rd6 {[%clk 0:01:02]} 27. f7+ {[%clk 0:01:00]}  Kf8 {[%clk 0:01:02]} 28. a3 {[%clk 0:00:55]}  Bxc3 {[%clk 0:01:01]} 29. Bxc3 {[%clk 0:00:52]}  Rxd5 {[%clk 0:00:58]} 30. Bb4+ {[%clk 0:00:37]}  c5 {[%clk 0:00:58]} 31. Rad1 {[%clk 0:00:37]}  Re5 {[%clk 0:00:49]} 32. Bc3 {[%clk 0:00:29]}  Re7 {[%clk 0:00:45]} 33. Rd6 {[%clk 0:00:29]}  Rxf7 {[%clk 0:00:44]} 34. Rxg6 {[%clk 0:00:29]}  Rxf1+ {[%clk 0:00:44]} 35. Kxf1 {[%clk 0:00:30]}  Kf7 {[%clk 0:00:42]} 36. Rxh6 {[%clk 0:00:30]}  b5 {[%clk 0:00:42]} 37. Rb6 {[%clk 0:00:29]}  b4 {[%clk 0:00:42]} 38. axb4 {[%clk 0:00:29]}  cxb4 {[%clk 0:00:43]} 39. Bxb4 {[%clk 0:00:29]}  Rh8 {[%clk 0:00:41]} 40. h3 {[%clk 0:00:28]}  Rh4 {[%clk 0:00:42]} 41. Bc3 {[%clk 0:00:26]}  Rc4 {[%clk 0:00:42]} 42. Rb4 {[%clk 0:00:22]}  Rxb4 {[%clk 0:00:40]} 43. Bxb4 {[%clk 0:00:22]}  Ke6 {[%clk 0:00:41]} 44. Kf2 {[%clk 0:00:22]}  Kd5 {[%clk 0:00:42]} 45. Kf3 {[%clk 0:00:22]}  Kc4 {[%clk 0:00:43]} 46. Ba3 {[%clk 0:00:20]}  Kd3 {[%clk 0:00:43]} 47. Kg4 {[%clk 0:00:21]}  Ke3 {[%clk 0:00:41]} 48. Kxg5 {[%clk 0:00:21]} 1-0


[Site "https://www.chess.com"]

[Event "Titled Tuesday Blitz July 25 Late 2023"]
[White "Al-Tarboush, Ward"]
[Black "littlepinkyboy"]
[WhiteFideId "7601450"]
[WhiteElo "2554"]
[BlackElo "2355"]
[Result "0-1"]
[Round "4"]
[TimeControl "180+2"]
[Date "2023.07.25"]
[WhiteClock "0:02:19"]
[BlackClock "0:02:06"]
[Board "123"]

1. e4 {[%clk 0:03:00]}  c6 {[%clk 0:02:57]} 2. Nf3 {[%clk 0:03:00]}  d5 {[%clk 0:02:57]} 3. Nc3 {[%clk 0:03:01]}  dxe4 {[%clk 0:02:57]} 4. Nxe4 {[%clk 0:03:02]}  Nf6 {[%clk 0:02:57]} 5. Nxf6+ {[%clk 0:03:02]}  exf6 {[%clk 0:02:58]} 6. Bc4 {[%clk 0:03:02]}  Bd6 {[%clk 0:02:57]} 7. Qe2+ {[%clk 0:03:02]}  Qe7 {[%clk 0:02:57]} 8. Qxe7+ {[%clk 0:03:02]}  Bxe7 {[%clk 0:02:58]} 9. O-O {[%clk 0:03:02]}  O-O {[%clk 0:02:59]} 10. Re1 {[%clk 0:03:02]}  Bd6 {[%clk 0:02:59]} 11. d4 {[%clk 0:03:02]}  Bg4 {[%clk 0:02:58]} 12. Bd2 {[%clk 0:02:59]}  Bxf3 {[%clk 0:02:56]} 13. gxf3 {[%clk 0:02:59]}  Nd7 {[%clk 0:02:57]} 14. Bd3 {[%clk 0:02:59]}  g6 {[%clk 0:02:53]} 15. c4 {[%clk 0:02:59]}  f5 {[%clk 0:02:50]} 16. c5 {[%clk 0:02:56]}  Bb8 {[%clk 0:02:40]} 17. Re7 {[%clk 0:02:55]}  Nf6 {[%clk 0:02:37]} 18. Rxb7 {[%clk 0:02:54]}  Nd5 {[%clk 0:02:38]} 19. Re1 {[%clk 0:02:52]}  Bf4 {[%clk 0:02:37]} 20. Bxf4 {[%clk 0:02:49]}  Nxf4 {[%clk 0:02:37]} 21. Bc4 {[%clk 0:02:50]}  Rad8 {[%clk 0:02:34]} 22. Ree7 {[%clk 0:02:48]}  Rxd4 {[%clk 0:02:25]} 23. Bxf7+ {[%clk 0:02:48]}  Rxf7 {[%clk 0:02:23]} 24. Re8+ {[%clk 0:02:39]}  Kg7 {[%clk 0:02:19]} 25. Rxf7+ {[%clk 0:02:39]}  Kxf7 {[%clk 0:02:20]} 26. Re1 {[%clk 0:02:40]}  Rd2 {[%clk 0:02:19]} 27. b4 {[%clk 0:02:37]}  Rxa2 {[%clk 0:02:19]} 28. h4 {[%clk 0:02:34]}  Nd3 {[%clk 0:02:14]} 29. Rd1 {[%clk 0:02:34]}  Nxb4 {[%clk 0:02:11]} 30. Rd7+ {[%clk 0:02:34]}  Kf6 {[%clk 0:02:12]} 31. Rxh7 {[%clk 0:02:34]}  a5 {[%clk 0:02:10]} 32. Rb7 {[%clk 0:02:31]}  Nd3 {[%clk 0:02:08]} 33. Rb6 {[%clk 0:02:30]}  Ne5 {[%clk 0:02:08]} 34. f4 {[%clk 0:02:30]}  Nf3+ {[%clk 0:02:08]} 35. Kg2 {[%clk 0:02:31]}  Nd4 {[%clk 0:02:07]} 36. Kg3 {[%clk 0:02:29]}  a4 {[%clk 0:02:07]} 37. Rb4 {[%clk 0:02:26]}  Nb5 {[%clk 0:02:06]} 38. Rb1 {[%clk 0:02:19]}  a3 {[%clk 0:02:06]} 0-1


[Site "https://www.chess.com"]

[Event "Titled Tuesday Blitz July 25 Late 2023"]
[White "Ambartsumova, Karina"]
[Black "Gavarrete, Nahun"]
[WhiteFideId "4166299"]
[BlackFideId "8400709"]
[WhiteElo "2554"]
[BlackElo "2351"]
[Result "1/2-1/2"]
[Round "4"]
[TimeControl "180+2"]
[Date "2023.07.25"]
[WhiteClock "0:00:08"]
[BlackClock "0:00:13"]
[Board "124"]

1. c4 {[%clk 0:03:00]}  Nf6 {[%clk 0:02:58]} 2. Nf3 {[%clk 0:02:59]}  g6 {[%clk 0:02:58]} 3. g3 {[%clk 0:02:59]}  Bg7 {[%clk 0:02:59]} 4. Bg2 {[%clk 0:03:00]}  O-O {[%clk 0:03:00]} 5. O-O {[%clk 0:03:01]}  c5 {[%clk 0:03:00]} 6. d4 {[%clk 0:03:00]}  cxd4 {[%clk 0:02:59]} 7. Nxd4 {[%clk 0:03:01]}  Nc6 {[%clk 0:02:59]} 8. Nc2 {[%clk 0:03:02]}  d6 {[%clk 0:02:58]} 9. Nc3 {[%clk 0:03:02]}  a6 {[%clk 0:02:58]} 10. b3 {[%clk 0:03:01]}  Bd7 {[%clk 0:02:55]} 11. Bb2 {[%clk 0:03:01]}  Rb8 {[%clk 0:02:56]} 12. a4 {[%clk 0:02:47]}  Qc8 {[%clk 0:02:55]} 13. Re1 {[%clk 0:02:36]}  Bh3 {[%clk 0:02:55]} 14. Bh1 {[%clk 0:02:36]}  Ng4 {[%clk 0:02:56]} 15. f3 {[%clk 0:02:20]}  Nf6 {[%clk 0:02:49]} 16. Ne3 {[%clk 0:02:12]}  h5 {[%clk 0:02:48]} 17. Qd2 {[%clk 0:02:10]}  Bh6 {[%clk 0:02:48]} 18. f4 {[%clk 0:02:07]}  Bg7 {[%clk 0:02:44]} 19. Ncd5 {[%clk 0:02:04]}  Nd7 {[%clk 0:01:30]} 20. Bxg7 {[%clk 0:02:02]}  Kxg7 {[%clk 0:01:31]} 21. Rac1 {[%clk 0:01:55]}  Kg8 {[%clk 0:01:29]} 22. Red1 {[%clk 0:01:47]}  Nc5 {[%clk 0:01:28]} 23. b4 {[%clk 0:01:37]}  Nb3 {[%clk 0:01:28]} 24. Qb2 {[%clk 0:01:35]}  Nxc1 {[%clk 0:01:26]} 25. Rxc1 {[%clk 0:01:36]}  Qd7 {[%clk 0:01:09]} 26. b5 {[%clk 0:01:31]}  Nd8 {[%clk 0:01:03]} 27. Qd4 {[%clk 0:00:18]}  Ne6 {[%clk 0:00:49]} 28. Qb2 {[%clk 0:00:18]}  Nc5 {[%clk 0:00:49]} 29. Rd1 {[%clk 0:00:17]}  Nxa4 {[%clk 0:00:48]} 30. Qb4 {[%clk 0:00:14]}  Nc5 {[%clk 0:00:47]} 31. b6 {[%clk 0:00:06]}  f6 {[%clk 0:00:47]} 32. Qb2 {[%clk 0:00:05]}  Be6 {[%clk 0:00:47]} 33. Qd4 {[%clk 0:00:05]}  Bxd5 {[%clk 0:00:46]} 34. Nxd5 {[%clk 0:00:05]}  Rbc8 {[%clk 0:00:38]} 35. Qe3 {[%clk 0:00:04]}  Kf7 {[%clk 0:00:34]} 36. Bf3 {[%clk 0:00:03]}  Qe6 {[%clk 0:00:33]} 37. Qd2 {[%clk 0:00:02]}  f5 {[%clk 0:00:31]} 38. Qb2 {[%clk 0:00:02]}  Ne4 {[%clk 0:00:30]} 39. Nc7 {[%clk 0:00:02]}  Qxc4 {[%clk 0:00:29]} 40. Rc1 {[%clk 0:00:02]}  Qa4 {[%clk 0:00:22]} 41. Ra1 {[%clk 0:00:02]}  Qd7 {[%clk 0:00:20]} 42. Qb3+ {[%clk 0:00:03]}  e6 {[%clk 0:00:18]} 43. Rc1 {[%clk 0:00:03]}  d5 {[%clk 0:00:16]} 44. Qb2 {[%clk 0:00:03]}  Qd6 {[%clk 0:00:16]} 45. Qd4 {[%clk 0:00:03]}  Rfd8 {[%clk 0:00:14]} 46. e3 {[%clk 0:00:04]}  Rd7 {[%clk 0:00:12]} 47. Kg2 {[%clk 0:00:04]}  Rdxc7 {[%clk 0:00:13]} 48. bxc7 {[%clk 0:00:05]}  Rxc7 {[%clk 0:00:13]} 49. Rxc7+ {[%clk 0:00:05]}  Qxc7 {[%clk 0:00:13]} 50. Qh8 {[%clk 0:00:06]}  Qc2+ {[%clk 0:00:12]} 51. Kh3 {[%clk 0:00:06]}  Nf2+ {[%clk 0:00:11]} 52. Kh4 {[%clk 0:00:07]}  Ng4 {[%clk 0:00:11]} 53. Qh7+ {[%clk 0:00:07]}  Kf6 {[%clk 0:00:11]} 54. Qh8+ {[%clk 0:00:07]}  Ke7 {[%clk 0:00:12]} 55. Qg7+ {[%clk 0:00:06]}  Kd6 {[%clk 0:00:12]} 56. Qxb7 {[%clk 0:00:05]}  Qxh2+ {[%clk 0:00:11]} 57. Kg5 {[%clk 0:00:06]}  Qxg3 {[%clk 0:00:11]} 58. Qb6+ {[%clk 0:00:06]}  Kd7 {[%clk 0:00:11]} 59. Qb7+ {[%clk 0:00:07]}  Kd6 {[%clk 0:00:12]} 60. Qb6+ {[%clk 0:00:07]}  Kd7 {[%clk 0:00:12]} 61. Qb7+ {[%clk 0:00:07]}  Kd8 {[%clk 0:00:13]} 62. Qb8+ {[%clk 0:00:08]}  Kd7 {[%clk 0:00:13]} 63. Qb7+ {[%clk 0:00:08]} 1/2-1/2


[Site "https://www.chess.com"]

[Event "Titled Tuesday Blitz July 25 Late 2023"]
[White "Golubev, Mikhail"]
[Black "Yolosz"]
[WhiteFideId "14100983"]
[WhiteElo "2544"]
[BlackElo "2351"]
[Result "1-0"]
[Round "4"]
[TimeControl "180+2"]
[Date "2023.07.25"]
[WhiteClock "0:00:03"]
[BlackClock "0:00:00"]
[Board "125"]

1. e4 {[%clk 0:03:00]}  c5 {[%clk 0:02:57]} 2. Ne2 {[%clk 0:03:00]}  Nc6 {[%clk 0:02:55]} 3. Nbc3 {[%clk 0:02:59]}  g6 {[%clk 0:02:49]} 4. d4 {[%clk 0:02:58]}  cxd4 {[%clk 0:02:45]} 5. Nxd4 {[%clk 0:02:59]}  Bg7 {[%clk 0:02:46]} 6. Be3 {[%clk 0:02:59]}  Nf6 {[%clk 0:02:45]} 7. Nxc6 {[%clk 0:02:55]}  bxc6 {[%clk 0:02:42]} 8. e5 {[%clk 0:02:55]}  Ng8 {[%clk 0:02:42]} 9. Bd4 {[%clk 0:02:53]}  f6 {[%clk 0:02:41]} 10. f4 {[%clk 0:02:32]}  Nh6 {[%clk 0:02:37]} 11. exf6 {[%clk 0:02:25]}  Bxf6 {[%clk 0:02:33]} 12. Ne4 {[%clk 0:01:48]}  Bxd4 {[%clk 0:02:26]} 13. Qxd4 {[%clk 0:01:46]}  O-O {[%clk 0:02:26]} 14. O-O-O {[%clk 0:01:36]}  Nf5 {[%clk 0:01:58]} 15. Qe5 {[%clk 0:01:21]}  d5 {[%clk 0:01:27]} 16. Nc3 {[%clk 0:00:36]}  Qd6 {[%clk 0:01:21]} 17. Bd3 {[%clk 0:00:34]}  Rb8 {[%clk 0:00:46]} 18. Qxd6 {[%clk 0:00:30]}  Nxd6 {[%clk 0:00:41]} 19. g3 {[%clk 0:00:30]}  Bf5 {[%clk 0:00:37]} 20. Rhe1 {[%clk 0:00:28]}  Rf7 {[%clk 0:00:22]} 21. b3 {[%clk 0:00:25]}  Bxd3 {[%clk 0:00:20]} 22. Rxd3 {[%clk 0:00:24]}  Re8 {[%clk 0:00:17]} 23. Rd2 {[%clk 0:00:20]}  Kg7 {[%clk 0:00:16]} 24. Rde2 {[%clk 0:00:20]}  Kf6 {[%clk 0:00:07]} 25. Re6+ {[%clk 0:00:19]}  Kf5 {[%clk 0:00:06]} 26. h3 {[%clk 0:00:17]}  Ne4 {[%clk 0:00:05]} 27. Re5+ {[%clk 0:00:17]}  Kf6 {[%clk 0:00:05]} 28. Nxe4+ {[%clk 0:00:17]}  dxe4 {[%clk 0:00:05]} 29. R1xe4 {[%clk 0:00:17]}  e6 {[%clk 0:00:05]} 30. Rc5 {[%clk 0:00:15]}  Rc7 {[%clk 0:00:05]} 31. Rec4 {[%clk 0:00:15]}  Rd8 {[%clk 0:00:03]} 32. Rxc6 {[%clk 0:00:13]}  Rcd7 {[%clk 0:00:04]} 33. Re4 {[%clk 0:00:12]}  Rd2 {[%clk 0:00:04]} 34. Rexe6+ {[%clk 0:00:09]}  Kg7 {[%clk 0:00:05]} 35. Kb2 {[%clk 0:00:08]}  Rg2 {[%clk 0:00:04]} 36. Re3 {[%clk 0:00:07]}  Kh6 {[%clk 0:00:03]} 37. g4 {[%clk 0:00:06]}  Rd7 {[%clk 0:00:01]} 38. Rc4 {[%clk 0:00:06]}  Kg7 {[%clk 0:00:01]} 39. a4 {[%clk 0:00:05]}  Rf2 {[%clk 0:00:01]} 40. b4 {[%clk 0:00:05]}  Rb7 {[%clk 0:00:01]} 41. b5 {[%clk 0:00:04]}  a6 {[%clk 0:00:01]} 42. Rb4 {[%clk 0:00:04]}  a5 {[%clk 0:00:01]} 43. Rc4 {[%clk 0:00:04]}  Rd2 {[%clk 0:00:01]} 44. Rb3 {[%clk 0:00:03]}  Rbd7 {[%clk 0:00:00]} 45. b6 {[%clk 0:00:03]} 1-0


[Site "https://www.chess.com"]

[Event "Titled Tuesday Blitz July 25 Late 2023"]
[White "Kostiukov, Alexandr"]
[Black "Fiorito, Francisco"]
[WhiteFideId "14108100"]
[BlackFideId "180165"]
[WhiteElo "2348"]
[BlackElo "2526"]
[Result "0-1"]
[Round "4"]
[TimeControl "180+2"]
[Date "2023.07.25"]
[WhiteClock "0:00:00"]
[BlackClock "0:00:19"]
[Board "126"]

1. g3 {[%clk 0:02:53]}  d5 {[%clk 0:02:58]} 2. Bg2 {[%clk 0:02:53]}  e5 {[%clk 0:02:58]} 3. c4 {[%clk 0:02:51]}  dxc4 {[%clk 0:02:54]} 4. Qa4+ {[%clk 0:02:50]}  c6 {[%clk 0:02:54]} 5. Qxc4 {[%clk 0:02:50]}  Nf6 {[%clk 0:02:54]} 6. Nf3 {[%clk 0:02:48]}  Bd6 {[%clk 0:02:52]} 7. O-O {[%clk 0:02:46]}  O-O {[%clk 0:02:51]} 8. d4 {[%clk 0:02:42]}  e4 {[%clk 0:02:45]} 9. Ng5 {[%clk 0:02:34]}  Qe7 {[%clk 0:02:39]} 10. Qc2 {[%clk 0:02:04]}  Bf5 {[%clk 0:02:37]} 11. Nc3 {[%clk 0:02:01]}  Re8 {[%clk 0:02:37]} 12. Qb3 {[%clk 0:01:00]}  Na6 {[%clk 0:02:06]} 13. f3 {[%clk 0:00:52]}  e3 {[%clk 0:01:53]} 14. Nge4 {[%clk 0:00:47]}  Bxe4 {[%clk 0:01:11]} 15. fxe4 {[%clk 0:00:43]}  Ng4 {[%clk 0:01:04]} 16. e5 {[%clk 0:00:39]}  Bb8 {[%clk 0:01:03]} 17. h3 {[%clk 0:00:34]}  Nxe5 {[%clk 0:00:56]} 18. dxe5 {[%clk 0:00:25]}  Bxe5 {[%clk 0:00:57]} 19. g4 {[%clk 0:00:17]}  Nc5 {[%clk 0:00:52]} 20. Qc2 {[%clk 0:00:15]}  Bd6 {[%clk 0:00:45]} 21. Qf5 {[%clk 0:00:12]}  Rad8 {[%clk 0:00:42]} 22. b4 {[%clk 0:00:05]}  Na6 {[%clk 0:00:37]} 23. a3 {[%clk 0:00:03]}  Nc7 {[%clk 0:00:30]} 24. Bb2 {[%clk 0:00:02]}  Be5 {[%clk 0:00:27]} 25. Rab1 {[%clk 0:00:00]}  Rd2 {[%clk 0:00:19]} 0-1


[Site "https://www.chess.com"]